[Event "*** SCC Grand Prix: Titled Tuesday Blitz"]
[Site "Chess.com"]
[Date "2020.06.09"]
[Round "2"]
[White "SamuelGhimpu2003"]
[Black "AnishGiri"]
[Result "0-1"]
[WhiteElo "2602"]
[BlackElo "2961"]
[TimeControl "180+1"]
[EndTime "9:17:57 PDT"]
[Termination "AnishGiri won by resignation"]

1. b3 {[%clk 0:02:54.9]} 1... d5 {[%clk 0:02:58.4]} 2. Bb2 {[%clk 0:02:55.8]}
2... Bg4 {[%clk 0:02:58.1]} 3. Nf3 {[%clk 0:02:47.1]} 3... Nd7 {[%clk
0:02:52.9]} 4. d4 {[%clk 0:02:42.5]} 4... e6 {[%clk 0:02:50.2]} 5. Nbd2 {[%clk
0:02:42.7]} 5... Ngf6 {[%clk 0:02:50.1]} 6. c4 {[%clk 0:02:41.5]} 6... Bd6
{[%clk 0:02:38.8]} 7. e3 {[%clk 0:02:40.4]} 7... O-O {[%clk 0:02:38.6]} 8. h3
{[%clk 0:02:40.4]} 8... Bh5 {[%clk 0:02:38.5]} 9. Be2 {[%clk 0:02:40.7]} 9... c6
{[%clk 0:02:35.2]} 10. O-O {[%clk 0:02:39.9]} 10... Qb8 {[%clk 0:02:27.8]} 11.
Qc2 {[%clk 0:02:09.1]} 11... a5 {[%clk 0:02:22.1]} 12. Rfe1 {[%clk 0:02:03.5]}
12... a4 {[%clk 0:02:17.7]} 13. Bd3 {[%clk 0:01:59.9]} 13... b5 {[%clk
0:01:59.5]} 14. Rab1 {[%clk 0:01:30.9]} 14... axb3 {[%clk 0:01:50]} 15. axb3
{[%clk 0:01:31.8]} 15... Ra2 {[%clk 0:01:50.2]} 16. Ra1 {[%clk 0:01:26.7]} 16...
Rxa1 {[%clk 0:01:40.1]} 17. Rxa1 {[%clk 0:01:27.6]} 17... Rc8 {[%clk 0:01:36.9]}
18. Ba3 {[%clk 0:01:18.4]} 18... Bxa3 {[%clk 0:01:29.6]} 19. Rxa3 {[%clk
0:01:19.3]} 19... c5 {[%clk 0:01:22.6]} 20. dxc5 {[%clk 0:00:32.6]} 20... Bxf3
{[%clk 0:01:19.2]} 21. Nxf3 {[%clk 0:00:31.4]} 21... dxc4 {[%clk 0:01:19.8]} 22.
bxc4 {[%clk 0:00:17.2]} 22... b4 {[%clk 0:01:20.3]} 23. Ra5 {[%clk 0:00:15.3]}
23... Nxc5 {[%clk 0:01:19.1]} 24. Rb5 {[%clk 0:00:15]} 24... Qd6 {[%clk
0:01:19.8]} 25. Bf1 {[%clk 0:00:14.1]} 25... b3 {[%clk 0:01:20]} 26. Qb2 {[%clk
0:00:13.6]} 26... h6 {[%clk 0:01:16.8]} 27. Nd4 {[%clk 0:00:13.7]} 27... Nfe4
{[%clk 0:01:06.9]} 28. Nxb3 {[%clk 0:00:12.5]} 28... Na4 {[%clk 0:01:00.9]} 29.
Qc2 {[%clk 0:00:08.9]} 29... Nec3 {[%clk 0:00:58.2]} 30. Ra5 {[%clk 0:00:05.4]}
30... Qb4 {[%clk 0:00:58.2]} 31. Ra7 {[%clk 0:00:05.5]} 31... Qb6 {[%clk
0:00:57.9]} 32. Rd7 {[%clk 0:00:03.3]} 32... Nd5 {[%clk 0:00:56]} 33. Qd1 {[%clk
0:00:01.9]} 33... Nac3 {[%clk 0:00:48.2]} 34. Qd3 {[%clk 0:00:02.3]} 34... Nf6
{[%clk 0:00:45.5]} 35. c5 {[%clk 0:00:02.7]} 35... Qxb3 {[%clk 0:00:44.3]} 36.
Qd6 {[%clk 0:00:02.7]} 36... Nxd7 {[%clk 0:00:43.4]} 37. Qxd7 {[%clk 0:00:01.9]}
0-1

[Event "*** SCC Grand Prix: Titled Tuesday Blitz"]
[Site "Chess.com"]
[Date "2020.06.09"]
[Round "2"]
[White "PattyCastillo"]
[Black "boo786"]
[Result "0-1"]
[WhiteElo "1895"]
[BlackElo "2383"]
[TimeControl "180+1"]
[EndTime "9:17:57 PDT"]
[Termination "boo786 won on time"]

1. d4 {[%clk 0:03:00.9]} 1... Nf6 {[%clk 0:02:58.9]} 2. Nf3 {[%clk 0:03:00.2]}
2... d6 {[%clk 0:02:58]} 3. Nc3 {[%clk 0:02:59.4]} 3... Bf5 {[%clk 0:02:55]} 4.
Bg5 {[%clk 0:02:47.8]} 4... Ne4 {[%clk 0:02:44.8]} 5. Nxe4 {[%clk 0:02:44.7]}
5... Bxe4 {[%clk 0:02:43.9]} 6. e3 {[%clk 0:02:41.8]} 6... c6 {[%clk 0:02:43.7]}
7. c3 {[%clk 0:02:29.3]} 7... Nd7 {[%clk 0:02:41.2]} 8. Bd3 {[%clk 0:02:27.8]}
8... Bxd3 {[%clk 0:02:38.2]} 9. Qxd3 {[%clk 0:02:27.3]} 9... h6 {[%clk
0:02:37.8]} 10. Bh4 {[%clk 0:02:26]} 10... g6 {[%clk 0:02:33.9]} 11. O-O {[%clk
0:02:22.8]} 11... Bg7 {[%clk 0:02:33.7]} 12. Rad1 {[%clk 0:02:21.3]} 12... O-O
{[%clk 0:02:33.3]} 13. Rfe1 {[%clk 0:02:15.7]} 13... Re8 {[%clk 0:02:31.8]} 14.
e4 {[%clk 0:02:15.3]} 14... Qc7 {[%clk 0:02:29.7]} 15. Bg3 {[%clk 0:01:55.3]}
15... Rad8 {[%clk 0:02:22.9]} 16. Qc4 {[%clk 0:01:43.8]} 16... b5 {[%clk
0:02:12.1]} 17. Qb3 {[%clk 0:01:42.3]} 17... a6 {[%clk 0:02:10.3]} 18. a4 {[%clk
0:01:40.8]} 18... Qb7 {[%clk 0:01:59.3]} 19. axb5 {[%clk 0:01:38.6]} 19... cxb5
{[%clk 0:01:45.8]} 20. Ra1 {[%clk 0:01:29.5]} 20... Nb6 {[%clk 0:01:41.8]} 21.
Qc2 {[%clk 0:01:14.4]} 21... e6 {[%clk 0:01:31.7]} 22. e5 {[%clk 0:00:58]} 22...
d5 {[%clk 0:01:30.2]} 23. Nd2 {[%clk 0:00:51.7]} 23... Ra8 {[%clk 0:01:23.1]}
24. b4 {[%clk 0:00:46.8]} 24... Rec8 {[%clk 0:01:17.8]} 25. Qb3 {[%clk
0:00:41.8]} 25... Nc4 {[%clk 0:01:16.2]} 26. Ra2 {[%clk 0:00:21.5]} 26... a5
{[%clk 0:01:03.1]} 27. bxa5 {[%clk 0:00:18.3]} 27... Nxa5 {[%clk 0:01:01.4]} 28.
Qb2 {[%clk 0:00:15.8]} 28... Nc6 {[%clk 0:00:54.5]} 29. Rea1 {[%clk 0:00:13]}
29... Rxa2 {[%clk 0:00:53.3]} 30. Rxa2 {[%clk 0:00:13.6]} 30... b4 {[%clk
0:00:52.4]} 31. cxb4 {[%clk 0:00:12.3]} 31... Qxb4 {[%clk 0:00:51.4]} 32. Qxb4
{[%clk 0:00:12.2]} 32... Nxb4 {[%clk 0:00:50.7]} 33. Ra1 {[%clk 0:00:10.1]}
33... Rc2 {[%clk 0:00:48.1]} 34. Nb3 {[%clk 0:00:08.8]} 34... Rb2 {[%clk
0:00:46]} 35. Nc5 {[%clk 0:00:08.4]} 35... Nc6 {[%clk 0:00:45.9]} 36. Re1 {[%clk
0:00:04.4]} 36... Nxd4 {[%clk 0:00:45.2]} 37. h4 {[%clk 0:00:03.9]} 37... Nf5
{[%clk 0:00:44.5]} 38. Bf4 {[%clk 0:00:01.9]} 38... Nxh4 {[%clk 0:00:43.5]} 39.
Nd7 {[%clk 0:00:01.9]} 39... g5 {[%clk 0:00:40.6]} 0-1

[Event "*** SCC Grand Prix: Titled Tuesday Blitz"]
[Site "Chess.com"]
[Date "2020.06.09"]
[Round "2"]
[White "Grandmaster2B"]
[Black "Shushik"]
[Result "1-0"]
[WhiteElo "2430"]
[BlackElo "2173"]
[TimeControl "180+1"]
[EndTime "9:17:58 PDT"]
[Termination "Grandmaster2B won by resignation"]

1. e4 {[%clk 0:03:00.9]} 1... e5 {[%clk 0:03:00.1]} 2. Nf3 {[%clk 0:03:01]} 2...
Nc6 {[%clk 0:03:00.2]} 3. Bb5 {[%clk 0:03:01.4]} 3... Nf6 {[%clk 0:03:00]} 4.
O-O {[%clk 0:03:01.5]} 4... Nxe4 {[%clk 0:03:00.2]} 5. Re1 {[%clk 0:02:54.9]}
5... Nd6 {[%clk 0:02:59.7]} 6. Nxe5 {[%clk 0:02:54.7]} 6... Be7 {[%clk 0:02:59]}
7. Bf1 {[%clk 0:02:53.8]} 7... O-O {[%clk 0:02:56.2]} 8. d4 {[%clk 0:02:53.1]}
8... Bf6 {[%clk 0:02:40.3]} 9. c3 {[%clk 0:02:43.4]} 9... Nf5 {[%clk 0:02:21.6]}
10. Nd2 {[%clk 0:02:31.1]} 10... d6 {[%clk 0:02:17.7]} 11. Nxc6 {[%clk
0:02:27.7]} 11... bxc6 {[%clk 0:02:17.6]} 12. Bd3 {[%clk 0:02:28.3]} 12... g6
{[%clk 0:02:12]} 13. Ne4 {[%clk 0:02:25.9]} 13... Bg7 {[%clk 0:02:10.1]} 14. Bg5
{[%clk 0:02:21.4]} 14... f6 {[%clk 0:01:57.9]} 15. Bf4 {[%clk 0:02:15.5]} 15...
Rb8 {[%clk 0:01:45.2]} 16. Rb1 {[%clk 0:02:05.8]} 16... Ne7 {[%clk 0:01:39.9]}
17. Qa4 {[%clk 0:02:00.1]} 17... Bd7 {[%clk 0:01:19.2]} 18. Qxa7 {[%clk
0:01:40.4]} 18... Nd5 {[%clk 0:01:10.7]} 19. Bd2 {[%clk 0:01:18.7]} 19... Ra8
{[%clk 0:01:09.9]} 20. Qb7 {[%clk 0:01:15.9]} 20... Nb6 {[%clk 0:01:03.8]} 21.
Ng3 {[%clk 0:00:47.5]} 21... d5 {[%clk 0:00:51.3]} 22. Bf4 {[%clk 0:00:41.8]}
22... Rxa2 {[%clk 0:00:30]} 23. Bxc7 {[%clk 0:00:34.2]} 23... Qc8 {[%clk
0:00:29.3]} 24. Qxb6 {[%clk 0:00:30.3]} 24... Rf7 {[%clk 0:00:26.7]} 25. Bd6
{[%clk 0:00:23.1]} 25... Be6 {[%clk 0:00:20.6]} 26. Qb8 {[%clk 0:00:19.1]} 26...
Qxb8 {[%clk 0:00:19.3]} 27. Bxb8 {[%clk 0:00:20]} 27... Rf8 {[%clk 0:00:18.7]}
28. Bd6 {[%clk 0:00:18.7]} 28... Re8 {[%clk 0:00:18.9]} 29. Ba3 {[%clk
0:00:17.7]} 1-0

[Event "*** SCC Grand Prix: Titled Tuesday Blitz"]
[Site "Chess.com"]
[Date "2020.06.09"]
[Round "2"]
[White "Tsyhanchuk_Stanislav"]
[Black "CzechmVIII"]
[Result "0-1"]
[WhiteElo "2413"]
[BlackElo "2172"]
[TimeControl "180+1"]
[EndTime "9:17:58 PDT"]
[Termination "CzechmVIII won by resignation"]

1. e4 {[%clk 0:03:00.9]} 1... c5 {[%clk 0:02:59.2]} 2. Nf3 {[%clk 0:03:00.5]}
2... d6 {[%clk 0:02:59.4]} 3. d4 {[%clk 0:03:00.9]} 3... cxd4 {[%clk 0:03:00.3]}
4. Nxd4 {[%clk 0:03:01.4]} 4... Nf6 {[%clk 0:03:00.9]} 5. Nc3 {[%clk 0:03:00.6]}
5... g6 {[%clk 0:03:01.4]} 6. Be3 {[%clk 0:02:59.6]} 6... Bg7 {[%clk 0:03:01.6]}
7. f3 {[%clk 0:02:58.1]} 7... Nc6 {[%clk 0:03:01.6]} 8. Qd2 {[%clk 0:02:57.6]}
8... O-O {[%clk 0:03:01.7]} 9. Bc4 {[%clk 0:02:56.6]} 9... Bd7 {[%clk
0:03:01.6]} 10. O-O-O {[%clk 0:02:56.3]} 10... Rc8 {[%clk 0:03:01.7]} 11. Bb3
{[%clk 0:02:56.1]} 11... Ne5 {[%clk 0:03:01.9]} 12. g4 {[%clk 0:02:53.7]} 12...
b5 {[%clk 0:03:01]} 13. h4 {[%clk 0:02:50.6]} 13... b4 {[%clk 0:02:59.7]} 14.
Nd5 {[%clk 0:02:49.5]} 14... Nxd5 {[%clk 0:02:59.9]} 15. Bxd5 {[%clk 0:02:46.9]}
15... e6 {[%clk 0:03:00.1]} 16. Bb3 {[%clk 0:02:46.3]} 16... a5 {[%clk
0:03:00.2]} 17. Bh6 {[%clk 0:02:16.1]} 17... a4 {[%clk 0:02:27]} 18. Bxg7 {[%clk
0:02:15.3]} 18... Kxg7 {[%clk 0:02:26.7]} 19. h5 {[%clk 0:02:13.7]} 19... g5
{[%clk 0:02:08.8]} 20. f4 {[%clk 0:02:05.7]} 20... gxf4 {[%clk 0:02:04.1]} 21.
Qxf4 {[%clk 0:01:54.2]} 21... axb3 {[%clk 0:02:04.2]} 22. axb3 {[%clk
0:01:37.1]} 22... Kh8 {[%clk 0:01:45.2]} 23. g5 {[%clk 0:01:27.1]} 23... Ra8
{[%clk 0:01:32.1]} 24. Kd2 {[%clk 0:01:01.3]} 24... Qe7 {[%clk 0:01:21.1]} 25.
Rdg1 {[%clk 0:00:56.6]} 25... Rac8 {[%clk 0:01:14.7]} 26. Rh4 {[%clk 0:00:44.7]}
26... Rc5 {[%clk 0:01:12.1]} 27. Rf1 {[%clk 0:00:30.5]} 27... Bb5 {[%clk
0:01:00.6]} 28. Rf2 {[%clk 0:00:22.8]} 28... Ba6 {[%clk 0:01:00.4]} 29. g6
{[%clk 0:00:20.8]} 29... f6 {[%clk 0:00:28.3]} 30. gxh7 {[%clk 0:00:20.1]} 30...
Qg7 {[%clk 0:00:24.1]} 31. Nxe6 {[%clk 0:00:17.8]} 31... Qg1 {[%clk 0:00:21.3]}
32. Nxc5 {[%clk 0:00:16.6]} 32... dxc5 {[%clk 0:00:19.8]} 33. Ke3 {[%clk
0:00:12.2]} 33... Qe1+ {[%clk 0:00:18.6]} 0-1

[Event "*** SCC Grand Prix: Titled Tuesday Blitz"]
[Site "Chess.com"]
[Date "2020.06.09"]
[Round "2"]
[White "wonderfultime"]
[Black "Reader777"]
[Result "1-0"]
[WhiteElo "2987"]
[BlackElo "2608"]
[TimeControl "180+1"]
[EndTime "9:17:59 PDT"]
[Termination "wonderfultime won by resignation"]

1. d4 {[%clk 0:03:00.9]} 1... Nf6 {[%clk 0:02:59.7]} 2. Nf3 {[%clk 0:03:01.1]}
2... e6 {[%clk 0:02:59.6]} 3. Bf4 {[%clk 0:03:01.5]} 3... c5 {[%clk 0:02:58.7]}
4. c3 {[%clk 0:03:01.5]} 4... Nc6 {[%clk 0:02:59.1]} 5. e3 {[%clk 0:03:01.7]}
5... d5 {[%clk 0:02:59.3]} 6. Nbd2 {[%clk 0:03:02]} 6... Bd6 {[%clk 0:02:59.7]}
7. Bg3 {[%clk 0:03:02.2]} 7... O-O {[%clk 0:02:59.9]} 8. Bb5 {[%clk 0:03:02.7]}
8... Ne7 {[%clk 0:02:53]} 9. Bd3 {[%clk 0:03:01.7]} 9... b6 {[%clk 0:02:50.7]}
10. O-O {[%clk 0:02:56.3]} 10... Bb7 {[%clk 0:02:50]} 11. a4 {[%clk 0:02:56.8]}
11... Ne4 {[%clk 0:02:49]} 12. a5 {[%clk 0:02:53.2]} 12... Nf5 {[%clk
0:02:43.2]} 13. Re1 {[%clk 0:02:42.5]} 13... Nfxg3 {[%clk 0:02:40.3]} 14. hxg3
{[%clk 0:02:41.7]} 14... f5 {[%clk 0:02:38.8]} 15. Qa4 {[%clk 0:02:34]} 15...
Qc7 {[%clk 0:02:35.8]} 16. a6 {[%clk 0:02:19.5]} 16... Bc6 {[%clk 0:02:20.8]}
17. Bb5 {[%clk 0:02:19.4]} 17... Bxb5 {[%clk 0:02:17.9]} 18. Qxb5 {[%clk
0:02:20.3]} 18... c4 {[%clk 0:02:16.8]} 19. Rec1 {[%clk 0:02:13.5]} 19... Rac8
{[%clk 0:02:14]} 20. b3 {[%clk 0:02:07.8]} 20... cxb3 {[%clk 0:02:11.6]} 21. c4
{[%clk 0:02:08.3]} 21... Nxd2 {[%clk 0:02:03.8]} 22. Nxd2 {[%clk 0:02:06.9]}
22... Qc6 {[%clk 0:01:27.6]} 23. Qxb3 {[%clk 0:02:05.8]} 23... dxc4 {[%clk
0:01:27.4]} 24. Rxc4 {[%clk 0:01:51.6]} 24... Qd5 {[%clk 0:01:26.9]} 25. Rac1
{[%clk 0:01:52]} 25... Rxc4 {[%clk 0:01:23]} 26. Rxc4 {[%clk 0:01:49.7]} 26...
e5 {[%clk 0:01:07.2]} 27. Qc2 {[%clk 0:01:12]} 27... exd4 {[%clk 0:01:01]} 28.
Rxd4 {[%clk 0:01:12.9]} 28... Qc5 {[%clk 0:00:54.5]} 29. Qb3+ {[%clk 0:00:59]}
29... Kh8 {[%clk 0:00:54]} 30. Nf3 {[%clk 0:00:59.6]} 30... h6 {[%clk
0:00:36.9]} 31. Rd5 {[%clk 0:00:48.1]} 31... Qc1+ {[%clk 0:00:36]} 32. Rd1
{[%clk 0:00:48.5]} 32... Qc5 {[%clk 0:00:29]} 33. Nd4 {[%clk 0:00:45.7]} 33...
Re8 {[%clk 0:00:23.4]} 34. Qf7 {[%clk 0:00:42.5]} 34... Rf8 {[%clk 0:00:21.4]}
35. Qxa7 {[%clk 0:00:38.5]} 35... Qd5 {[%clk 0:00:20.6]} 36. Qxb6 {[%clk
0:00:35.9]} 36... Rb8 {[%clk 0:00:20.2]} 37. Qc6 {[%clk 0:00:35.8]} 37... Qe5
{[%clk 0:00:17.8]} 38. Nf3 {[%clk 0:00:35.6]} 1-0

[Event "*** SCC Grand Prix: Titled Tuesday Blitz"]
[Site "Chess.com"]
[Date "2020.06.09"]
[Round "2"]
[White "Infernal_XaM"]
[Black "mbachez"]
[Result "1-0"]
[WhiteElo "2775"]
[BlackElo "2529"]
[TimeControl "180+1"]
[EndTime "9:18:00 PDT"]
[Termination "Infernal_XaM won by resignation"]

1. e4 {[%clk 0:03:00.9]} 1... e6 {[%clk 0:02:59.7]} 2. d4 {[%clk 0:03:00.4]}
2... b6 {[%clk 0:02:59.8]} 3. Bd3 {[%clk 0:02:59]} 3... Bb7 {[%clk 0:02:59.8]}
4. Qe2 {[%clk 0:02:59.5]} 4... c5 {[%clk 0:02:58.1]} 5. d5 {[%clk 0:02:57.4]}
5... Nf6 {[%clk 0:02:45]} 6. c4 {[%clk 0:02:56.9]} 6... e5 {[%clk 0:02:43.3]} 7.
Nc3 {[%clk 0:02:56.6]} 7... d6 {[%clk 0:02:43.2]} 8. f4 {[%clk 0:02:56.8]} 8...
Nbd7 {[%clk 0:02:41.4]} 9. Nf3 {[%clk 0:02:57.1]} 9... g6 {[%clk 0:02:40.4]} 10.
fxe5 {[%clk 0:02:54.6]} 10... Nxe5 {[%clk 0:02:17.7]} 11. Nxe5 {[%clk
0:02:51.2]} 11... dxe5 {[%clk 0:02:17.2]} 12. Bc2 {[%clk 0:02:51.6]} 12... Be7
{[%clk 0:02:06.9]} 13. Bh6 {[%clk 0:02:44]} 13... Bf8 {[%clk 0:01:53.6]} 14. Bg5
{[%clk 0:02:43.1]} 14... Be7 {[%clk 0:01:53.5]} 15. Ba4+ {[%clk 0:02:41.7]}
15... Nd7 {[%clk 0:01:49.5]} 16. Bh6 {[%clk 0:02:34.7]} 16... Bf8 {[%clk
0:01:45.4]} 17. Bxf8 {[%clk 0:02:16.7]} 17... Kxf8 {[%clk 0:01:43.5]} 18. Bxd7
{[%clk 0:02:14.8]} 18... Qxd7 {[%clk 0:01:42.7]} 19. O-O {[%clk 0:02:14]} 19...
Kg7 {[%clk 0:01:28.6]} 20. Qe3 {[%clk 0:02:12.7]} 20... f6 {[%clk 0:01:20.6]}
21. Rf2 {[%clk 0:02:11.2]} 21... Rhf8 {[%clk 0:01:20.1]} 22. a3 {[%clk
0:02:11.3]} 22... Rf7 {[%clk 0:01:17.6]} 23. Raf1 {[%clk 0:02:04.2]} 23... Raf8
{[%clk 0:01:15.3]} 24. Rf3 {[%clk 0:01:57.1]} 24... a6 {[%clk 0:01:05.1]} 25.
Rh3 {[%clk 0:01:53.3]} 25... h5 {[%clk 0:01:03.3]} 26. Rg3 {[%clk 0:01:52.3]}
26... Qd6 {[%clk 0:01:00.6]} 27. Rb1 {[%clk 0:01:25.1]} 27... Bc8 {[%clk
0:00:44.9]} 28. b4 {[%clk 0:01:22.7]} 28... f5 {[%clk 0:00:45]} 29. bxc5 {[%clk
0:01:18.6]} 29... bxc5 {[%clk 0:00:44.6]} 30. exf5 {[%clk 0:01:18.3]} 30... Bxf5
{[%clk 0:00:44.4]} 31. Re1 {[%clk 0:01:17.4]} 31... Kh7 {[%clk 0:00:36.8]} 32.
Rf3 {[%clk 0:01:03.3]} 32... Re8 {[%clk 0:00:20]} 33. Ne4 {[%clk 0:01:00.5]}
33... Qf8 {[%clk 0:00:17.4]} 34. Ng5+ {[%clk 0:00:59.9]} 34... Kg7 {[%clk
0:00:15.7]} 35. Nxf7 {[%clk 0:00:58.7]} 35... Qxf7 {[%clk 0:00:15.9]} 36. Qxc5
{[%clk 0:00:57.8]} 36... e4 {[%clk 0:00:16.3]} 37. Qd4+ {[%clk 0:00:56.2]} 37...
Kh7 {[%clk 0:00:16.4]} 38. Rxe4 {[%clk 0:00:48.6]} 38... Rxe4 {[%clk 0:00:11.9]}
39. Qxe4 {[%clk 0:00:48.7]} 39... Qa7+ {[%clk 0:00:11.6]} 40. Qe3 {[%clk
0:00:49.3]} 40... Qb7 {[%clk 0:00:11.8]} 41. h3 {[%clk 0:00:46.5]} 1-0

[Event "*** SCC Grand Prix: Titled Tuesday Blitz"]
[Site "Chess.com"]
[Date "2020.06.09"]
[Round "2"]
[White "GuuBol"]
[Black "AshotParvanyan"]
[Result "0-1"]
[WhiteElo "2231"]
[BlackElo "2451"]
[TimeControl "180+1"]
[EndTime "9:18:00 PDT"]
[Termination "AshotParvanyan won by resignation"]

1. e4 {[%clk 0:03:00.9]} 1... e5 {[%clk 0:02:59.1]} 2. Nc3 {[%clk 0:03:00.3]}
2... Nc6 {[%clk 0:02:58.7]} 3. Bc4 {[%clk 0:03:00.1]} 3... Nf6 {[%clk
0:02:54.5]} 4. d3 {[%clk 0:03:00]} 4... Na5 {[%clk 0:02:41.7]} 5. Bb3 {[%clk
0:02:59.7]} 5... Nxb3 {[%clk 0:02:41.7]} 6. axb3 {[%clk 0:03:00.6]} 6... d5
{[%clk 0:02:40.6]} 7. exd5 {[%clk 0:02:46.6]} 7... Nxd5 {[%clk 0:02:04.1]} 8.
Nf3 {[%clk 0:02:37.9]} 8... Nxc3 {[%clk 0:01:41.5]} 9. bxc3 {[%clk 0:02:37.4]}
9... Bd6 {[%clk 0:01:41.8]} 10. O-O {[%clk 0:02:31.7]} 10... O-O {[%clk
0:01:41.6]} 11. Re1 {[%clk 0:02:27]} 11... f6 {[%clk 0:01:37]} 12. h3 {[%clk
0:02:22.7]} 12... Re8 {[%clk 0:01:26.8]} 13. Be3 {[%clk 0:02:10.3]} 13... a5
{[%clk 0:01:20.1]} 14. Nd2 {[%clk 0:02:09.2]} 14... b6 {[%clk 0:01:10.2]} 15.
Qf3 {[%clk 0:02:05.1]} 15... Rb8 {[%clk 0:01:00.6]} 16. Ne4 {[%clk 0:02:00.8]}
16... Bf8 {[%clk 0:01:00.4]} 17. Ng3 {[%clk 0:01:57.9]} 17... Qd7 {[%clk
0:00:56.4]} 18. Ra4 {[%clk 0:01:39.2]} 18... Bb7 {[%clk 0:00:56]} 19. Qh5 {[%clk
0:01:37.2]} 19... Qf7 {[%clk 0:00:38.9]} 20. Qg4 {[%clk 0:01:32.1]} 20... Qe6
{[%clk 0:00:25.7]} 21. Qe2 {[%clk 0:01:17.4]} 21... Qc6 {[%clk 0:00:23.8]} 22.
f3 {[%clk 0:01:04.4]} 22... Qd7 {[%clk 0:00:24]} 23. Rh4 {[%clk 0:01:02]} 23...
g6 {[%clk 0:00:22.2]} 24. Bd2 {[%clk 0:01:01]} 24... Bg7 {[%clk 0:00:22.1]} 25.
Ne4 {[%clk 0:00:59.5]} 25... f5 {[%clk 0:00:19.1]} 26. Ng5 {[%clk 0:00:49.8]}
26... h6 {[%clk 0:00:18.6]} 27. Ne4 {[%clk 0:00:43.2]} 27... fxe4 {[%clk
0:00:18.4]} 28. Bxh6 {[%clk 0:00:42.1]} 28... exf3 {[%clk 0:00:16.3]} 29. gxf3
{[%clk 0:00:42.4]} 29... Bxh6 {[%clk 0:00:15.7]} 30. Rxh6 {[%clk 0:00:42.9]}
30... Kg7 {[%clk 0:00:15]} 31. Qe3 {[%clk 0:00:42.2]} 31... Qf5 {[%clk
0:00:13.9]} 32. Kh2 {[%clk 0:00:40.7]} 32... Rh8 {[%clk 0:00:12.5]} 33. Rxh8
{[%clk 0:00:39.6]} 33... Rxh8 {[%clk 0:00:13.4]} 34. f4 {[%clk 0:00:37.6]} 34...
Qxf4+ {[%clk 0:00:07.1]} 35. Qxf4 {[%clk 0:00:37.8]} 35... exf4 {[%clk 0:00:08]}
36. Re7+ {[%clk 0:00:38.5]} 36... Kf6 {[%clk 0:00:08.2]} 37. Rxc7 {[%clk
0:00:38.6]} 37... Bf3 {[%clk 0:00:05.5]} 38. Rc6+ {[%clk 0:00:36.8]} 38... Bxc6
{[%clk 0:00:04.8]} 0-1

[Event "*** SCC Grand Prix: Titled Tuesday Blitz"]
[Site "Chess.com"]
[Date "2020.06.09"]
[Round "2"]
[White "Moon_stone123"]
[Black "MF1966Idrisov"]
[Result "0-1"]
[WhiteElo "2453"]
[BlackElo "2280"]
[TimeControl "180+1"]
[EndTime "9:18:03 PDT"]
[Termination "MF1966Idrisov won by checkmate"]

1. e4 {[%clk 0:03:00.9]} 1... d6 {[%clk 0:02:56.8]} 2. d4 {[%clk 0:03:00.1]}
2... Nd7 {[%clk 0:02:56.4]} 3. Nc3 {[%clk 0:02:54.1]} 3... g6 {[%clk 0:02:56.8]}
4. Bg5 {[%clk 0:02:52.2]} 4... Bg7 {[%clk 0:02:55.8]} 5. f4 {[%clk 0:02:51.5]}
5... c5 {[%clk 0:02:55.7]} 6. dxc5 {[%clk 0:02:43.4]} 6... Nxc5 {[%clk
0:02:54.6]} 7. Nf3 {[%clk 0:02:42.8]} 7... Qb6 {[%clk 0:02:51.8]} 8. Nd5 {[%clk
0:02:38]} 8... Qd8 {[%clk 0:02:36]} 9. c3 {[%clk 0:02:24.2]} 9... Be6 {[%clk
0:02:33.1]} 10. Bb5+ {[%clk 0:02:22.7]} 10... Bd7 {[%clk 0:02:31.9]} 11. Qe2
{[%clk 0:02:12.7]} 11... h6 {[%clk 0:02:25]} 12. Bh4 {[%clk 0:02:11.7]} 12... a6
{[%clk 0:02:18.2]} 13. Bc4 {[%clk 0:02:07.8]} 13... b5 {[%clk 0:02:15.5]} 14.
Bb3 {[%clk 0:02:07.7]} 14... Nxb3 {[%clk 0:02:09.5]} 15. axb3 {[%clk 0:02:07.4]}
15... Bc6 {[%clk 0:02:05.7]} 16. O-O {[%clk 0:02:02.6]} 16... Bxd5 {[%clk
0:02:05.5]} 17. exd5 {[%clk 0:02:03.5]} 17... Nf6 {[%clk 0:02:05.7]} 18. Rfe1
{[%clk 0:01:54.7]} 18... O-O {[%clk 0:02:01.7]} 19. Qxe7 {[%clk 0:01:37.9]}
19... Qxe7 {[%clk 0:01:59.6]} 20. Rxe7 {[%clk 0:01:38.8]} 20... Nxd5 {[%clk
0:01:59.3]} 21. Re4 {[%clk 0:01:30]} 21... f5 {[%clk 0:01:43.2]} 22. Re6 {[%clk
0:01:29.6]} 22... Nxf4 {[%clk 0:01:43.2]} 23. Rxd6 {[%clk 0:01:23]} 23... g5
{[%clk 0:01:43.4]} 24. Bf2 {[%clk 0:01:16.7]} 24... Rf6 {[%clk 0:01:43]} 25.
Rxf6 {[%clk 0:01:12.7]} 25... Bxf6 {[%clk 0:01:42.3]} 26. g3 {[%clk 0:01:12.4]}
26... Nd3 {[%clk 0:01:41.6]} 27. Bd4 {[%clk 0:01:08]} 27... Kf7 {[%clk
0:01:36.4]} 28. Bxf6 {[%clk 0:01:01.2]} 28... Kxf6 {[%clk 0:01:36.4]} 29. Ra2
{[%clk 0:01:00.7]} 29... Nc5 {[%clk 0:01:29.6]} 30. Nd4 {[%clk 0:01:00.4]} 30...
Ke5 {[%clk 0:01:18.3]} 31. Nxb5 {[%clk 0:00:53.8]} 31... Nxb3 {[%clk 0:01:15]}
32. Nc7 {[%clk 0:00:52.8]} 32... Rd8 {[%clk 0:01:14.8]} 33. Nxa6 {[%clk
0:00:51]} 33... Rd1+ {[%clk 0:01:12.1]} 34. Kf2 {[%clk 0:00:49.2]} 34... Rd2+
{[%clk 0:01:12]} 35. Ke3 {[%clk 0:00:45.5]} 35... Rxh2 {[%clk 0:01:10.9]} 36.
Ra3 {[%clk 0:00:43.6]} 36... Rxb2 {[%clk 0:01:06.8]} 37. Nb4 {[%clk 0:00:40.3]}
37... f4+ {[%clk 0:01:05.8]} 38. gxf4+ {[%clk 0:00:39.7]} 38... gxf4+ {[%clk
0:01:05.8]} 39. Kf3 {[%clk 0:00:33.4]} 39... Nd2+ {[%clk 0:01:05.1]} 40. Kg4
{[%clk 0:00:33.9]} 40... Ke4 {[%clk 0:00:57.6]} 41. Ra8 {[%clk 0:00:31.7]} 41...
Nc4 {[%clk 0:00:56]} 42. Re8+ {[%clk 0:00:27.5]} 42... Ne5+ {[%clk 0:00:55.3]}
43. Kh3 {[%clk 0:00:23.3]} 43... Rb3 {[%clk 0:00:55.1]} 44. Re6 {[%clk
0:00:19.1]} 44... Rxc3+ {[%clk 0:00:54.5]} 45. Kh4 {[%clk 0:00:19.5]} 45... Kf5
{[%clk 0:00:52.9]} 46. Rxh6 {[%clk 0:00:18.6]} 46... Ng6+ {[%clk 0:00:50.8]} 47.
Kh5 {[%clk 0:00:18.2]} 47... Rh3# {[%clk 0:00:49.8]} 0-1